fUST/lending_fUST_20260205
["ID","MTS","AMOUNT","RATE_DAILY","PERIOD"]
[404528550,1770249032946,-220.62738798,0.0005726,120]
[404528551,1770249032955,-500.0,0.0005726,120]
[404528552,1770249032964,-500.0,0.0005726,120]
[404528553,1770249032972,-500.0,0.0005726,120]
[404528554,1770249032981,-500.0,0.00058082,120]
[404528555,1770249032990,-536.91,0.00058082,21]
[404528556,1770249032999,-500.0,0.00058082,120]
[404528557,1770249033009,-500.0,0.00058082,120]
[404528558,1770249033018,-1201.36,0.00058082,90]
[404528559,1770249033027,-556.99,0.00058082,120]
[404528560,1770249033037,-500.0,0.00058082,120]
[404528561,1770249033046,-500.0,0.00058082,120]
[404528562,1770249033056,-500.0,0.00058082,120]
[404528563,1770249033066,-500.0,0.00058082,120]
[404528564,1770249033078,-500.0,0.00058082,120]
[404528565,1770249033087,-500.0,0.00058082,120]
[404528566,1770249033097,-272.38071421,0.00058904,120]
[404528567,1770249033106,-536.91,0.00058904,21]
[404528568,1770249033121,-500.0,0.00058904,120]
[404528569,1770249033131,-295.01040997,0.00058904,120]
[404528570,1770249033140,-1201.36,0.00058904,90]
[404528571,1770249033149,-556.99,0.00058904,120]
[404528572,1770249033159,-500.0,0.00058904,120]
[404528573,1770249033168,-500.0,0.00058904,120]
[404528574,1770249033177,-500.0,0.00058904,120]
[404528575,1770249033186,-500.0,0.00058904,120]
[404528576,1770249033195,-462.24219431,0.00058904,120]
[404528577,1770249033204,-500.0,0.00058904,120]
[404528578,1770249033213,-536.91,0.00059726,21]
[404528579,1770249033222,-500.0,0.00059726,120]
[404528580,1770249033231,-1201.36,0.00059726,90]
[404528581,1770249033241,-556.99,0.00059726,120]
[404528582,1770249033252,-500.0,0.00059726,120]
[404528583,1770249033261,-500.0,0.00059726,120]
[404528584,1770249033270,-500.0,0.00059726,120]
[404528585,1770249033279,-500.0,0.00059726,120]
[404528586,1770249033288,-500.0,0.00059726,120]
[404528587,1770249033297,-1345.29396317,0.00060447,120]
[404528588,1770249033306,-500.0,0.00060547,120]
[404528589,1770249033315,-500.0,0.00060547,120]
[404528590,1770249033329,-500.0,0.00060547,120]
[404528591,1770249033338,-500.0,0.00060547,120]
[404528592,1770249033347,-921.36,0.00060547,120]
[404528593,1770249033357,-500.0,0.00060547,120]
[404528594,1770249033366,-500.0,0.00060547,120]
[404528595,1770249033375,-2330.96,0.00060547,2]
[404528596,1770249033384,-852.31,0.00060547,10]
[404528597,1770249033394,-536.91,0.00060547,21]
[404528598,1770249033403,-532.6035012,0.00060547,120]
[404528599,1770249033412,-1201.36,0.00060547,90]
[404528600,1770249033421,-556.99,0.00060547,120]
[404528601,1770249033431,-500.0,0.00060547,120]
[404528602,1770249033441,-500.0,0.00060547,120]
[404528603,1770249033450,-500.0,0.00060547,120]
[404528604,1770249033459,-634.75317764,0.00060547,120]
[404528605,1770249033468,-500.0,0.00060547,120]
[404528606,1770249033478,-1483.46,0.00061369,120]
[404528607,1770249033487,-696.99,0.00061369,2]
[404528608,1770249033497,-500.0,0.00061369,120]
[404528609,1770249033510,-500.0,0.00061369,120]
[404528610,1770249033519,-500.0,0.00061369,120]
[404528611,1770249033528,-500.0,0.00061369,120]
[404528612,1770249033538,-921.36,0.00061369,120]
[404528613,1770249033547,-500.0,0.00061369,120]
[404528614,1770249033557,-500.0,0.00061369,120]
[404528615,1770249033567,-2330.96,0.00061369,2]
[404528616,1770249033578,-852.31,0.00061369,10]
[404528617,1770249033588,-536.91,0.00061369,21]
[404528618,1770249033598,-1201.36,0.00061369,90]
[404528619,1770249033715,-556.99,0.00061369,120]
[404528620,1770249033724,-500.0,0.00061369,120]
[404528621,1770249033734,-500.0,0.00061369,120]
[404528622,1770249033744,-416.06790352,0.00061369,120]
[404528623,1770249033753,-500.0,0.00061369,120]
[404528624,1770249033762,-156.38,0.000614,30]
[404528625,1770249033772,-1024.0,0.00062,120]
[404528626,1770249033781,-356.09,0.00062181,10]
[404528627,1770249033790,-296.74,0.00062181,10]
[404528628,1770249033799,-247.28,0.00062181,10]
[404528629,1770249033808,-1483.46,0.00062191,120]
[404528630,1770249033817,-696.99,0.00062191,2]
[404528631,1770249033828,-500.0,0.00062191,120]
[404528632,1770249033837,-500.0,0.00062191,120]
[404528633,1770249033846,-500.0,0.00062191,120]
[404528634,1770249033856,-500.0,0.00062191,120]
[404528635,1770249033865,-921.36,0.00062191,120]
[404528636,1770249033874,-500.0,0.00062191,120]
[404528637,1770249033883,-500.0,0.00062191,120]
[404528638,1770249033892,-2330.96,0.00062191,2]
[404528639,1770249033902,-852.31,0.00062191,10]
[404528640,1770249033912,-536.91,0.00062191,21]
[404528641,1770249033922,-1201.36,0.00062191,90]
[404528642,1770249033931,-556.99,0.00062191,120]
[404528643,1770249033940,-500.0,0.00062191,120]
[404528644,1770249033949,-500.0,0.00062191,120]
[404528645,1770249033959,-476.05847276,0.00062191,120]
[404528646,1770249033968,-160.0,0.00062471,4]
[404528647,1770249033979,-250.0,0.00062593,2]
[404528648,1770249033989,-250.0,0.00062593,2]
[404528649,1770249033999,-250.0,0.00062593,2]
[404528650,1770249034009,-250.0,0.00062593,2]
[404528651,1770249034019,-250.0,0.00062593,2]
[404528652,1770249034028,-250.0,0.00062593,2]
[404528653,1770249034036,-250.0,0.00062593,2]
[404528654,1770249034046,-250.0,0.00062593,2]
[404528655,1770249034055,-250.0,0.00062593,2]
[404528656,1770249034065,-250.0,0.00062593,2]
[404528657,1770249034075,-250.0,0.00062593,2]
[404528658,1770249034084,-250.0,0.00062593,2]
[404528659,1770249034093,-250.0,0.00062593,2]
[404528660,1770249034103,-250.0,0.00062593,2]
[404528661,1770249034113,-210.5177879,0.00062631,2]
[404528662,1770249035277,-6087.64295422,0.00062631,2]
[404528663,1770249035290,-1483.46,0.00063013,120]
[404528664,1770249035303,-696.99,0.00063013,2]
[404528665,1770249035317,-500.0,0.00063013,120]
[404528666,1770249035333,-500.0,0.00063013,120]
[404528667,1770249035345,-544.00107403,0.00063013,120]
[404528668,1770249035355,-325.07610945,0.00063013,120]
[404528710,1770249040787,-174.92389055,0.00063013,120]
[404528711,1770249040798,-189.63414944,0.00063013,120]
[404528712,1770249042941,-731.72585056,0.00063013,120]
[404528713,1770249042950,-203.97294608,0.00063013,120]
[404528714,1770249042959,-500.0,0.00063013,120]
[404528715,1770249042968,-2330.96,0.00063013,2]
[404528716,1770249042977,-852.31,0.00063013,10]
[404528717,1770249042986,-536.91,0.00063013,21]
[404528718,1770249042995,-1201.36,0.00063013,90]
[404528719,1770249043004,-556.99,0.00063013,120]
[404528720,1770249043013,-500.0,0.00063013,120]
[404528721,1770249043022,-500.0,0.00063013,120]
[404528722,1770249043031,-1483.46,0.00063835,120]
[404528723,1770249043039,-696.99,0.00063835,2]
[404528724,1770249043048,-500.0,0.00063835,120]
[404528725,1770249043057,-500.0,0.00063835,120]
[404528726,1770249043067,-500.0,0.00063835,120]
[404528727,1770249043076,-921.36,0.00063835,120]
[404528728,1770249043086,-500.0,0.00063835,120]
[404528729,1770249043095,-2330.96,0.00063835,2]
[404528730,1770249043104,-138.49814791,0.00063835,10]
[404528753,1770249046657,-713.81185209,0.00063835,10]
[404528755,1770249046667,-536.91,0.00063835,21]
[404528757,1770249046677,-1201.36,0.00063835,90]
[404528759,1770249046686,-556.99,0.00063835,120]
[404528761,1770249046695,-500.0,0.00063835,120]
[404528763,1770249046704,-500.0,0.00063835,120]
[404528764,1770249046713,-157.71,0.000639,14]
[404528766,1770249046721,-165.0,0.00064,120]
[404528768,1770249046730,-438.07370133,0.00064146,120]
[404528773,1770249048291,-117.53843534,0.00064146,120]
[404528774,1770249048337,-138.42147874,0.00064146,120]
[404528782,1770249840617,160.0,0.0003,2]
[404528784,1770250145149,-1640.91033798,0.000301,2]
[404528785,1770250154103,-3418.7732319,0.000301,2]
[404528786,1770250154123,-400.0,0.00037355,3]
[404528787,1770250154144,-348.0,0.00037355,3]
[404528788,1770250154164,-300.0,0.00037355,3]
[404528789,1770250154187,-200.0,0.00038594,120]
[404528790,1770250154210,-500.0,0.00038986,5]
[404528791,1770250154230,-1000.0,0.0003926,5]
[404528792,1770250154249,-216.0,0.0004,20]
[404528793,1770250154270,-200.0,0.00043073,120]
[404528794,1770250154290,-17109.4714285,0.00045924,2]
[404528795,1770250154310,-377.47343061,0.00046314,120]
[404528796,1770250154330,-500.0,0.00046315,10]
[404528797,1770250154349,-14681.8615316,0.00046315,2]
[404528798,1770250154370,-200.0,0.00046365,120]
[404528799,1770250154392,-500.0,0.00049,60]
[404528800,1770250203904,2471.63140288,0.00039,2]
[404528801,1770250203925,89.46871112,0.00039,2]
[404528822,1770250231579,-415.8992,0.00051,85]
[404528824,1770250231588,-500.0,0.00052083,120]
[404528826,1770250231598,-208.08925379,0.00053042,2]
[404528828,1770250231607,-643.68952364,0.00053408,120]
[404528830,1770250231616,-500.0,0.00054794,120]
[404528832,1770250231626,-500.0,0.00054794,120]
[404528833,1770250231635,-500.0,0.00054794,120]
[404528835,1770250231644,-500.0,0.00054794,120]
[404528836,1770250231655,-1165.48,0.00054794,2]
[404528837,1770250231668,-500.0,0.00054794,2]
[404528838,1770250231678,-500.0,0.00054794,7]
[404528839,1770250231688,-500.0,0.00054794,21]
[404528840,1770250231698,-600.68,0.00054794,90]
[404528841,1770250231708,-500.0,0.00054794,120]
[404528842,1770250231717,-500.0,0.00054794,120]
[404528843,1770250231727,-500.0,0.00054794,120]
[404528844,1770250231738,-500.0,0.00054794,10]
[404528845,1770250231747,-1066.052917,0.0005498,26]
[404528846,1770250231756,-1000.0,0.00055,26]
[404528847,1770250231766,-163.17716351,0.00055,120]
[404528848,1770250231776,-500.0,0.00055616,120]
[404528849,1770250231786,-500.0,0.00055616,120]
[404528850,1770250231795,-500.0,0.00055616,120]
[404528851,1770250231804,-500.0,0.00055616,120]
[404528852,1770250231814,-1165.48,0.00055616,2]
[404528853,1770250231823,-500.0,0.00055616,2]
[404528854,1770250231833,-500.0,0.00055616,21]
[404528855,1770250231843,-600.68,0.00055616,90]
[404528856,1770250231852,-500.0,0.00055616,120]
[404528857,1770250231862,-500.0,0.00055616,120]
[404528858,1770250231871,-500.0,0.00055616,120]
[404528859,1770250231889,-500.0,0.00055616,10]
[404528860,1770250231902,-404.21791036,0.00056438,120]
[404528861,1770250234899,204.95,0.00046,120]
[404528864,1770250237896,-95.78208964,0.00056438,120]
[404528866,1770250237906,-441.07091953,0.00056438,120]
[404528867,1770250237916,-500.0,0.00056438,120]
[404528868,1770250237926,-573.20293986,0.00056438,120]
[404528869,1770250237936,-378.65870764,0.00056438,2]
[404528878,1770250244619,-786.82129236,0.00056438,2]
[404528879,1770250244629,-500.0,0.00056438,2]
[404528880,1770250244639,-500.0,0.00056438,21]
[404528881,1770250244650,-600.68,0.00056438,90]
[404528882,1770250244660,-500.0,0.00056438,120]
[404528883,1770250244673,-264.11247201,0.00056438,120]
[404528889,1770250245956,-235.88752799,0.00056438,120]
[404528890,1770250245967,-500.0,0.00056438,120]
[404528891,1770250245976,-500.0,0.00056438,10]
[404528892,1770250245986,-500.0,0.0005726,120]
[404528893,1770250245997,-500.0,0.0005726,120]
[404528894,1770250246006,-1165.48,0.0005726,2]
[404528895,1770250246016,-500.0,0.0005726,2]
[404528896,1770250246027,-500.0,0.0005726,21]
[404528897,1770250246038,-598.63247201,0.0005726,90]
[404528898,1770250246051,-2.04752799,0.0005726,90]
[404528899,1770250246061,-500.0,0.0005726,120]
[404528900,1770250246070,-500.0,0.0005726,120]
[404528901,1770250246080,-500.0,0.0005726,120]
[404528902,1770250246089,-500.0,0.0005726,10]
[404528903,1770250246100,-180.134416,0.00058082,120]
[404528904,1770250246110,-500.0,0.00058082,120]
[404528905,1770250246119,-1165.48,0.00058082,2]
[404528906,1770250246129,-500.0,0.00058082,2]
[404528907,1770250246138,-500.0,0.00058082,21]
[404528908,1770250246148,-600.68,0.00058082,90]
[404528909,1770250246158,-500.0,0.00058082,120]
[404528910,1770250246168,-500.0,0.00058082,120]
[404528911,1770250246177,-500.0,0.00058082,120]
[404528912,1770250246188,-500.0,0.00058082,10]
[404528913,1770250246197,-200.0,0.00058407,120]
[404528914,1770250246206,-264.23140143,0.00058903,120]
[404528915,1770250246217,-500.0,0.00058904,120]
[404528916,1770250246226,-1165.48,0.00058904,2]
[404528917,1770250246236,-500.0,0.00058904,2]
[404528918,1770250246246,-500.0,0.00058904,21]
[404528919,1770250246255,-600.68,0.00058904,90]
[404528920,1770250246264,-500.0,0.00058904,120]
[404528921,1770250246273,-500.0,0.00058904,120]
[404528922,1770250246283,-354.34466276,0.00058904,120]
[404528923,1770250246292,-500.0,0.00058904,10]
[404528924,1770250246303,-168.47474165,0.00059626,2]
[404528925,1770250246312,-500.0,0.00059726,120]
[404528926,1770250246322,-1165.48,0.00059726,2]
[404528927,1770250246331,-500.0,0.00059726,2]
[404528928,1770250246341,-500.0,0.00059726,21]
[404528929,1770250246350,-600.68,0.00059726,90]
[404528930,1770250246359,-500.0,0.00059726,120]
[404528931,1770250246368,-500.0,0.00059726,120]
[404528932,1770250246378,-500.0,0.00059726,10]
[404528933,1770250246387,-263.75949338,0.00060167,5]
[404528934,1770250246396,-665.51810363,0.00060447,120]
[404528935,1770250246405,-418.27137691,0.00060537,5]
[404528936,1770250246414,-500.0,0.00060546,120]
[404528937,1770250246424,-500.0,0.00060546,120]
[404528938,1770250246434,-500.0,0.00060547,120]
[404528939,1770250246444,-1165.48,0.00060547,2]
[404528940,1770250246453,-500.0,0.00060547,2]
[404528941,1770250246462,-500.0,0.00060547,21]
[404528942,1770250246471,-600.68,0.00060547,90]
[404528943,1770250246481,-500.0,0.00060547,120]
[404528944,1770250246490,-500.0,0.00060547,120]
[404528945,1770250246500,-500.0,0.00060547,10]
[404528946,1770250246509,-151.0,0.0006088,2]
[404528947,1770250246518,-741.08018794,0.00061156,2]
[404528948,1770250246529,-421.39000001,0.00061368,120]
[404528949,1770250246538,-500.0,0.00061368,120]
[404528950,1770250246548,-423.36371055,0.00061368,120]
[404528951,1770250246557,-500.0,0.00061369,120]
[404528952,1770250246567,-1165.48,0.00061369,2]
[404528953,1770250246577,-500.0,0.00061369,2]
[404528954,1770250246587,-500.0,0.00061369,21]
[404528955,1770250246596,-600.68,0.00061369,90]
[404528956,1770250246605,-500.0,0.00061369,120]
[404528957,1770250246614,-194.76059016,0.00061369,120]
[404528958,1770250246624,-500.0,0.00061369,10]
[404528959,1770250246633,-151.0,0.00061428,2]
[404528960,1770250246643,-301.742048,0.00061976,2]
[404528961,1770250246654,-999.0,0.0006219,120]
[404528962,1770250246666,-500.0,0.00062191,120]
[404528963,1770250246676,-1165.48,0.00062191,2]
[404528964,1770250246687,-500.0,0.00062191,2]
[404528965,1770250246697,-500.0,0.00062191,21]
[404528966,1770250246707,-600.68,0.00062191,90]
[404528967,1770250246716,-500.0,0.00062191,120]
[404528968,1770250246726,-500.0,0.00062191,10]
[404528969,1770250246736,-200.0,0.00062383,120]
[404528970,1770250246746,-500.0,0.00062797,120]
[404528971,1770250246757,-741.73,0.00063012,120]
[404528972,1770250246767,-500.0,0.00063013,120]
[404528973,1770250246776,-1165.48,0.00063013,2]
[404528974,1770250246785,-500.0,0.00063013,2]
[404528975,1770250246795,-500.0,0.00063013,21]
[404528976,1770250246806,-600.68,0.00063013,90]
[404528977,1770250246815,-500.0,0.00063013,120]
[404528978,1770250246826,-200.3749905,0.00063013,2]
[404528979,1770250246835,-360.67498291,0.00063013,2]
[404528980,1770250246845,-500.0,0.00063013,10]
[404528981,1770250246855,-200.0,0.0006377,120]
[404528982,1770250246864,-741.73,0.00063834,120]
[404528983,1770250246875,-500.0,0.00063835,120]
[404528984,1770250246884,-1165.48,0.00063835,2]
[404528985,1770250246894,-500.0,0.00063835,2]
[404528986,1770250246903,-500.0,0.00063835,21]
[404528987,1770250246913,-600.68,0.00063835,90]
[404528988,1770250246922,-500.0,0.00063835,120]
[404528989,1770250246932,-500.0,0.00063835,10]
[404528990,1770250246943,-293.4205,0.000639,30]
[404528991,1770250246952,-212.86130882,0.00064045,35]
[404528992,1770250246962,-10000.0,0.0006408,120]
[404528993,1770250246971,-206.07,0.00064135,10]
[404528994,1770250246980,-171.72,0.00064135,10]
[404528995,1770250246989,-500.0,0.00064145,120]
[404528996,1770250246998,-250.0,0.00064145,120]
[404528997,1770250247007,-250.0,0.00064145,120]
[404528998,1770250247016,-250.0,0.00064145,120]
[404528999,1770250247026,-250.0,0.00064145,120]
[404529000,1770250247035,-500.0,0.00064145,120]
[404529001,1770250247044,-250.0,0.00064145,120]
[404529002,1770250247053,-250.0,0.00064145,120]
[404529003,1770250247063,-151.0,0.00064145,120]
[404529004,1770250247072,-250.0,0.00064145,120]
[404529005,1770250247081,-500.0,0.00064145,120]
[404529006,1770250247090,-250.0,0.00064145,120]
[404529007,1770250247099,-250.0,0.00064145,120]
[404529008,1770250247108,-156.587,0.00064145,120]
[404529009,1770250247117,-250.0,0.00064145,120]
[404529010,1770250247127,-250.0,0.00064145,120]
[404529011,1770250247136,-250.0,0.00064145,120]
[404529012,1770250247146,-500.0,0.00064145,120]
[404529013,1770250247155,-250.0,0.00064145,120]
[404529014,1770250247164,-162.380719,0.00064145,120]
[404529015,1770250247173,-250.0,0.00064145,120]
[404529016,1770250247182,-250.0,0.00064145,120]
[404529017,1770250247192,-1000.0,0.00064145,120]
[404529018,1770250247202,-500.0,0.00064145,120]
[404529019,1770250247211,-250.0,0.00064145,120]
[404529020,1770250247220,-250.0,0.00064145,120]
[404529021,1770250247229,-168.3888056,0.00064145,120]
[404529022,1770250247238,-250.0,0.00064145,120]
[404529023,1770250247247,-1000.0,0.00064145,120]
[404529024,1770250247256,-500.0,0.00064145,120]
[404529025,1770250247266,-250.0,0.00064145,120]
[404529026,1770250247275,-250.0,0.00064145,120]
[404529027,1770250247284,-174.61919141,0.00064145,120]
[404529028,1770250247294,-250.0,0.00064145,120]
[404529029,1770250247303,-1000.0,0.00064145,120]
[404529030,1770250247312,-500.0,0.00064145,120]
[404529031,1770250247321,-250.0,0.00064145,120]
[404529032,1770250247330,-250.0,0.00064145,120]
[404529033,1770250247340,-250.0,0.00064145,120]
[404529034,1770250247349,-181.08010149,0.00064145,120]
[404529035,1770250247359,-1000.0,0.00064145,120]
[404529036,1770250247368,-250.0,0.00064145,120]
[404529037,1770250247377,-187.78006527,0.00064145,120]
[404529038,1770250247386,-1000.0,0.00064145,120]
[404529039,1770250247395,-250.0,0.00064145,120]
[404529040,1770250247405,-500.0,0.00064145,120]
[404529041,1770250247414,-1000.0,0.00064145,120]
[404529042,1770250247423,-500.0,0.00064145,120]
[404529043,1770250247432,-1000.0,0.00064145,120]
[404529044,1770250247444,-500.0,0.00064145,120]
[404529045,1770250247453,-500.0,0.00064145,120]
[404529046,1770250247463,-500.0,0.00064145,120]
[404529047,1770250247472,-500.0,0.00064145,120]
[404529048,1770250247480,-500.0,0.00064145,120]
[404529049,1770250247489,-250.0,0.00064145,120]
[404529050,1770250247498,-617.52247055,0.00064145,120]
[404529051,1770250247508,-250.0,0.00064145,120]
[404529052,1770250247517,-250.0,0.00064145,120]
[404529053,1770250247527,-250.0,0.00064145,120]
[404529054,1770250247536,-500.0,0.00064145,120]
[404529055,1770250247546,-250.0,0.00064145,120]
[404529056,1770250247556,-500.0,0.00064145,120]
[404529057,1770250247565,-250.0,0.00064145,120]
[404529058,1770250247574,-500.0,0.00064145,120]
[404529059,1770250247584,-250.0,0.00064145,120]
[404529060,1770250247593,-500.0,0.00064145,120]
[404529061,1770250247602,-500.0,0.00064145,120]
[404529062,1770250247612,-500.0,0.00064145,120]
[404529063,1770250247622,-151.0,0.00064145,120]
[404529064,1770250247632,-500.0,0.00064145,120]
[404529065,1770250247642,-500.0,0.00064145,120]
[404529066,1770250247651,-216.30290029,0.00064145,120]
[404529067,1770250247665,-500.0,0.00064145,120]
[404529068,1770250247675,-500.0,0.00064145,120]
[404529069,1770250247684,-500.0,0.00064145,120]
[404529070,1770250247696,-500.0,0.00064145,120]
[404529071,1770250247708,-500.0,0.00064145,120]
[404529072,1770250247717,-500.0,0.00064145,120]
[404529073,1770250247727,-665.51810363,0.00064374,120]
[404529074,1770250247737,-418.27137691,0.00064647,5]
[404529075,1770250247747,-741.73,0.00064656,120]
[404529076,1770250247757,-500.0,0.00064657,120]
[404529077,1770250247766,-1165.48,0.00064657,2]
[404529078,1770250247775,-500.0,0.00064657,2]
[404529079,1770250247785,-443.11810466,0.00064657,21]
[404529080,1770250247795,-600.68,0.00064657,90]
[404529081,1770250247804,-500.0,0.00064657,120]
[404529082,1770250247814,-500.0,0.00064657,10]
[404529083,1770250247823,-741.73,0.00065478,120]
[404529084,1770250247833,-500.0,0.00065479,120]
[404529085,1770250247842,-1165.48,0.00065479,2]
[404529086,1770250247852,-500.0,0.00065479,2]
[404529087,1770250247861,-600.68,0.00065479,90]
[404529088,1770250247870,-184.09224167,0.00065479,120]
[404529089,1770250247880,-500.0,0.00065479,10]
[404529090,1770250247889,-165.0,0.00066,120]
[404529091,1770250247899,-5000.0,0.00066123,120]
[404529092,1770250247908,-741.73,0.000663,120]
[404529093,1770250247917,-500.0,0.00066301,120]
[404529094,1770250247926,-1165.48,0.00066301,2]
[404529095,1770250247936,-500.0,0.00066301,2]
[404529096,1770250247945,-600.68,0.00066301,90]
[404529097,1770250247955,-500.0,0.00066301,10]
[404529098,1770250247965,-200.0,0.00066443,120]
[404529099,1770250247974,-23946.1578131,0.00066495,120]
[404529100,1770250247983,-157.71,0.000665,14]
[404529101,1770250247993,-200.0,0.00066813,120]
[404529102,1770250248002,-800.0,0.0006687,60]
[404529103,1770250248011,-800.0,0.00066872,60]
[404529104,1770250248020,-800.0,0.00066884,60]
[404529105,1770250248029,-800.0,0.00066887,60]
[404529106,1770250248038,-800.0,0.00066889,60]
[404529107,1770250248048,-800.0,0.00066926,60]
[404529108,1770250248057,-800.0,0.00066945,60]
[404529109,1770250248067,-418.27137691,0.00066946,6]
[404529110,1770250248076,-800.0,0.0006695,60]
[404529111,1770250248086,-800.0,0.00066956,60]
[404529112,1770250248096,-800.0,0.00066962,60]
[404529113,1770250248104,-578.11939646,0.00066981,60]
[404529114,1770250248114,-800.0,0.00066999,60]
[404529115,1770250248123,-800.0,0.00067048,60]
[404529116,1770250248133,-800.0,0.00067063,60]
[404529117,1770250248144,-800.0,0.00067065,60]
[404529118,1770250248153,-800.0,0.00067069,60]
[404529119,1770250248163,-800.0,0.0006707,60]
[404529120,1770250248172,-800.0,0.0006707,60]
[404529121,1770250248182,-800.0,0.00067071,60]
[404529122,1770250248192,-200.0,0.00067073,120]
[404529123,1770250248202,-800.0,0.00067075,60]
[404529124,1770250248213,-800.0,0.00067086,60]
[404529125,1770250248224,-792.70662951,0.00067089,120]
[404529126,1770250248233,-800.0,0.00067091,60]
[404529127,1770250248242,-800.0,0.00067094,60]
[404529128,1770250248252,-800.0,0.0006711,60]
[404529129,1770250248262,-800.0,0.00067111,60]
[404529130,1770250248271,-800.0,0.00067121,60]
[404529131,1770250248280,-151.0,0.00067122,120]
[404529132,1770250248288,-181.35729585,0.00067122,120]
[404529133,1770250248298,-741.73,0.00067122,120]
[404529134,1770250248308,-500.0,0.00067123,120]
[404529135,1770250248320,-1165.48,0.00067123,2]
[404529136,1770250248329,-500.0,0.00067123,2]
[404529137,1770250248339,-600.68,0.00067123,90]
[404529138,1770250248349,-500.0,0.00067123,10]
[404529139,1770250248359,-151.0,0.000672,120]
[404529140,1770250248368,-741.73,0.00067944,120]
[404529141,1770250248377,-500.0,0.00067945,120]
[404529142,1770250248386,-1165.48,0.00067945,2]
[404529143,1770250248396,-363.99621929,0.00067945,2]
[404529144,1770250248405,-600.68,0.00067945,90]
[404529145,1770250248414,-500.0,0.00067945,10]
[404529146,1770250248423,-836.54275382,0.0006798,6]
[404529147,1770250248432,-209.81929292,0.0006798,6]
[404529148,1770250248442,-1000.0,0.00068,120]
[404529149,1770250248451,-665.51810363,0.000683,120]
[404529150,1770250248461,-151.0,0.000684,120]
[404529151,1770250248471,-763.38752294,0.00068492,30]
[404529152,1770250248480,-511.82984356,0.00068493,120]
[404529153,1770250248490,-300.0,0.00068493,2]
[404529154,1770250248499,-500.0,0.00068493,30]
[404529155,1770250248508,-500.0,0.00068493,30]
[404529156,1770250248518,-500.0,0.00068493,30]
[404529157,1770250248527,-500.0,0.00068493,30]
[404529158,1770250248536,-500.0,0.00068493,30]
[404529159,1770250248545,-500.0,0.00068493,30]
[404529160,1770250248554,-517.38491021,0.00068493,30]
[404529161,1770250248563,-160.0,0.00068493,5]
[404529162,1770250248572,-248.6998783,0.00068493,5]
[404529163,1770250248663,-336.1898509,0.00068493,2]
[404529164,1770250248684,-276.042732,0.00068616,30]
[404529165,1770250248695,-741.73,0.00068766,120]
[404529166,1770250248705,-500.0,0.00068767,120]
[404529167,1770250248715,-1165.48,0.00068767,2]
[404529168,1770250248724,-600.68,0.00068767,90]
[404529169,1770250248733,-500.0,0.00068767,10]
[404529170,1770250248745,-418.27137691,0.00068785,6]
[404529171,1770250248755,-7450.69847862,0.00068794,30]
[404529172,1770250248764,-7450.69847862,0.00068794,30]
[404529173,1770250248774,-3000.0,0.00069,120]